bitfinex/quotes_BTCUSD_20251102
["timestamp","ask_amount","ask_price","bid_price","bid_amount"]
[1762124260152,1e-08,109940.0,109930.0,0.58603395]
[1762124260587,1e-08,109940.0,109930.0,1.01226894]
[1762124260798,1e-08,109940.0,109930.0,1.00826894]
[1762124261006,1e-08,109940.0,109930.0,0.58403395]
[1762124261662,1e-08,109940.0,109930.0,1.01026894]
[1762124262110,1e-08,109940.0,109930.0,0.58403395]
[1762124262748,0.18191741,109940.0,109930.0,1.01026894]
[1762124264180,0.21180741,109940.0,109930.0,0.98118894]
[1762124265286,0.23583741,109940.0,109930.0,0.98118894]
[1762124265494,0.23883741,109940.0,109930.0,0.98118894]
[1762124265702,0.23883741,109940.0,109930.0,0.97918894]
[1762124265931,0.23883741,109940.0,109930.0,0.34]
[1762124266137,0.18193395,109930.0,109920.0,0.64615549]
[1762124266313,0.22131569,109930.0,109920.0,0.66278549]
[1762124266551,0.19857395,109930.0,109920.0,0.36976]
[1762124266787,0.23423395,109930.0,109920.0,0.35313]
[1762124267866,0.23423395,109930.0,109920.0,0.35513]
[1762124268082,0.23423395,109930.0,109920.0,0.37176]
[1762124268971,0.23423395,109930.0,109920.0,0.36976]
[1762124269191,0.29110313,109930.0,109910.0,0.01186]
[1762124269437,0.31328991,109920.0,109910.0,0.36857806]
[1762124269654,0.2905461,109920.0,109910.0,0.36857806]
[1762124270144,0.2905461,109920.0,109910.0,0.55054512]
[1762124270585,0.2905461,109920.0,109910.0,0.57498512]
[1762124270804,0.1085956,109920.0,109910.0,0.57498512]
[1762124271014,0.2905461,109920.0,109910.0,0.57598512]
[1762124271477,0.1085956,109920.0,109910.0,0.57598512]
[1762124271913,0.31628991,109920.0,109910.0,0.57598512]
[1762124272146,0.2935461,109920.0,109910.0,0.57598512]
[1762124272806,0.1115956,109920.0,109910.0,0.57598512]
[1762124273027,0.13433941,109920.0,109910.0,0.57598512]
[1762124273466,0.34031991,109920.0,109910.0,0.53491512]
[1762124273705,0.3175761,109920.0,109910.0,0.53491512]
[1762124273915,0.37908513,109920.0,109910.0,0.35294806]
[1762124274140,0.37908513,109920.0,109910.0,0.00108806]
[1762124274585,0.40642537,109920.0,109910.0,0.00108806]
[1762124276468,0.37908513,109920.0,109910.0,0.00108806]
[1762124276671,0.40642687,109920.0,109910.0,0.00108806]
[1762124276879,0.83311617,109920.0,109910.0,0.00108806]
[1762124277076,0.40642687,109920.0,109910.0,0.00108806]
[1762124277297,0.83311617,109920.0,109910.0,0.00108806]
[1762124287805,0.12905734,109920.0,109910.0,0.02957806]
[1762124288037,0.0850756,109920.0,109910.0,0.57598512]
[1762124288952,0.0850756,109920.0,109910.0,1.00267442]
[1762124288953,0.003,109920.0,109910.0,1.00267442]
[1762124290923,0.12254381,109940.0,109930.0,0.18193395]
[1762124291136,0.20029477,109940.0,109930.0,0.21027395]
[1762124291343,0.10941381,109940.0,109930.0,0.23471395]
[1762124291585,0.08207561,109940.0,109930.0,0.23471395]
[1762124293590,0.08807561,109940.0,109930.0,0.23471395]
[1762124294242,0.00600001,109940.0,109930.0,0.23471395]
[1762124295335,1e-08,109940.0,109930.0,0.23471395]
[1762124295549,0.00300001,109940.0,109930.0,0.23471395]
[1762124295838,0.00300001,109940.0,109930.0,0.23571395]
[1762124296047,0.00300001,109940.0,109930.0,0.66240325]
[1762124296261,0.00300001,109940.0,109930.0,0.23571395]
[1762124303377,0.00300001,109940.0,109930.0,0.21127395]
[1762124303581,0.00300001,109940.0,109930.0,0.23532395]
[1762124304841,0.18491741,109940.0,109930.0,0.23532395]
[1762124312096,0.20054741,109940.0,109930.0,0.23381395]
[1762124312523,0.22688741,109940.0,109930.0,0.21127395]
[1762124313177,0.18491741,109940.0,109930.0,0.23381395]
[1762124314438,0.18491741,109940.0,109930.0,0.05188]
[1762124319286,0.20054741,109940.0,109930.0,0.05188]
[1762124319513,0.70506921,109940.0,109930.0,0.001]
[1762124319908,0.27837991,109940.0,109930.0,0.001]
[1762124320159,0.27837991,109940.0,109930.0,0.01625]
[1762124320378,0.00300001,109940.0,109930.0,0.23066395]
[1762124320593,0.00300001,109940.0,109930.0,0.65735325]
[1762124321503,0.00300001,109940.0,109930.0,0.99735325]
[1762124322349,0.00300001,109940.0,109930.0,1.02468447]
[1762124322572,0.00300001,109940.0,109930.0,1.03408218]
[1762124322775,1e-08,109940.0,109930.0,1.03408218]
[1762124323208,1e-08,109940.0,109930.0,1.03308218]
[1762124323625,1e-08,109940.0,109930.0,1.03508218]
[1762124326050,1e-08,109940.0,109930.0,1.03708218]
[1762124326276,1e-08,109940.0,109930.0,1.03508218]
[1762124326506,1e-08,109940.0,109930.0,1.1061122]
[1762124328013,1e-08,109940.0,109930.0,1.56898378]
[1762124328235,1e-08,109940.0,109930.0,1.57898377]
[1762124328447,1e-08,109940.0,109930.0,2.00432811]
[1762124329287,1e-08,109940.0,109930.0,1.56808714]
[1762124329509,1e-08,109940.0,109930.0,1.57808713]
[1762124331316,1e-08,109940.0,109930.0,2.00432811]
[1762124332567,1e-08,109940.0,109930.0,2.00232811]
[1762124332767,1e-08,109940.0,109930.0,2.00332811]
[1762124332969,1e-08,109940.0,109930.0,2.00832811]
[1762124334585,1e-08,109940.0,109930.0,2.0183281]
[1762124335393,1e-08,109940.0,109930.0,2.1663281]
[1762124337307,0.0004,109960.0,109950.0,0.21808314]
[1762124337537,0.0004,109960.0,109950.0,1.2400851]
[1762124337538,0.00033266,109960.0,109950.0,1.2400851]
[1762124337741,0.00033266,109960.0,109950.0,1.2643751]
[1762124337974,0.00077565,109960.0,109950.0,1.29169607]
[1762124338687,0.00177565,109960.0,109950.0,1.29169607]
[1762124339094,0.00177565,109960.0,109950.0,1.29369607]
[1762124342111,0.00077565,109960.0,109950.0,1.29369607]
[1762124342532,0.00077565,109960.0,109950.0,1.29569607]
[1762124342960,0.00077565,109960.0,109950.0,1.29369607]
[1762124343184,0.00077565,109960.0,109950.0,1.29769607]
[1762124343867,1e-08,109960.0,109950.0,1.63769607]
[1762124344095,1e-08,109970.0,109960.0,0.57349432]
[1762124344333,1e-08,109970.0,109960.0,1.88839954]
[1762124344550,1e-08,109970.0,109960.0,1.04591757]
[1762124344795,0.08966463,109980.0,109960.0,1.07323396]
[1762124345021,0.0310945,109990.0,109980.0,0.55803352]
[1762124345237,0.0310945,109990.0,109980.0,0.58367352]
[1762124345459,0.0310945,109990.0,109980.0,0.63527991]
[1762124345724,0.0310945,109990.0,109980.0,1.48776187]
[1762124346364,0.0310945,109990.0,109980.0,1.49176187]
[1762124346583,0.0310945,109990.0,109980.0,0.63927991]
[1762124346792,0.0310945,109990.0,109980.0,1.49176187]
[1762124348327,0.0310945,109990.0,109980.0,1.56141]
[1762124348757,0.0310945,109990.0,109980.0,1.98765098]
[1762124350866,0.0310945,109990.0,109980.0,2.13565098]
[1762124351282,0.03175875,109990.0,109980.0,2.13565098]
[1762124351713,0.03175875,109990.0,109980.0,2.10833459]
[1762124353551,0.03175875,109990.0,109980.0,0.79342937]
[1762124353798,0.03175875,109990.0,109980.0,1.64591133]
[1762124354319,0.03175875,109990.0,109980.0,1.68209361]
[1762124363658,0.03175875,109990.0,109980.0,2.10833459]
[1762124364479,0.03175875,109990.0,109980.0,0.82961165]
[1762124364696,0.03175875,109990.0,109980.0,2.10833459]
[1762124364902,0.03175875,109990.0,109980.0,1.68209361]
[1762124368084,0.03175875,109990.0,109980.0,2.10833459]
[1762124370395,0.03175875,109990.0,109980.0,1.96033459]
[1762124388570,0.03175875,109990.0,109980.0,1.53347863]
[1762124392139,0.03175875,109990.0,109980.0,1.52947863]
[1762124392562,0.03175875,109990.0,109980.0,1.53447863]
[1762124393161,0.03175875,109990.0,109980.0,1.53747863]
[1762124394156,0.03175875,109990.0,109980.0,1.56479012]
[1762124394721,0.03175875,109990.0,109980.0,2.01072359]
[1762124394722,1e-08,109990.0,109980.0,2.01072359]
[1762124395150,1e-08,110000.0,109990.0,0.18183471]
[1762124395363,1e-08,110000.0,109990.0,1.43707516]
[1762124395572,0.0004,110010.0,110000.0,0.18181818]
[1762124395780,0.00088387,110010.0,110000.0,1.41887516]
[1762124396605,0.00088387,110010.0,110000.0,1.42251618]
[1762124397251,0.00088387,110010.0,110000.0,1.42551618]
[1762124398156,0.00088387,110010.0,110000.0,1.43051618]
[1762124400445,0.0004,110020.0,110010.0,1.37366863]
[1762124400670,8e-05,110030.0,110020.0,0.64390089]
[1762124400886,0.00022513,110030.0,110020.0,1.01104089]
[1762124401099,0.00022513,110030.0,110020.0,1.04391451]
[1762124401577,0.00088901,110030.0,110020.0,1.49715052]
[1762124401800,0.0004,110050.0,110040.0,0.55793437]
[1762124402023,0.0004,110050.0,110040.0,1.43526135]
[1762124402442,0.0004,110050.0,110040.0,1.88504484]
[1762124403160,0.0024,110050.0,110040.0,1.89504483]
[1762124403589,0.0024,110050.0,110040.0,1.89904483]
[1762124403800,0.0004,110050.0,110040.0,1.89904483]
[1762124404027,0.0004,110050.0,110040.0,1.90904482]
[1762124404271,0.0004,110070.0,110060.0,1.40976832]
[1762124404490,0.00054505,110070.0,110060.0,1.8966918]
[1762124404942,0.00054505,110070.0,110060.0,1.90033054]
[1762124405419,0.0004,110090.0,110080.0,0.64380181]
[1762124405647,0.0004,110090.0,110080.0,0.67017181]
[1762124405881,0.20950954,110090.0,110080.0,0.02637]
[1762124406142,0.18168604,110080.0,110070.0,0.37481]
[1762124406356,0.18168604,110080.0,110070.0,0.46074349]
[1762124406589,0.20912604,110080.0,110070.0,0.01096]
[1762124406809,0.18170255,110070.0,110060.0,0.43766349]
[1762124407026,0.0824756,110090.0,110060.0,0.6677285]
[1762124407246,0.0004,110090.0,110080.0,0.97398953]
[1762124407695,0.0004,110090.0,110080.0,0.99783953]
[1762124408405,0.0004,110090.0,110080.0,1.03402181]
[1762124408854,0.0004,110090.0,110080.0,1.4599553]
[1762124409079,0.0004,110090.0,110080.0,1.03702181]
[1762124409301,0.0024,110090.0,110080.0,1.03702181]
[1762124409527,0.0024,110090.0,110080.0,1.4629553]
[1762124409746,0.0024,110090.0,110080.0,1.03702181]
[1762124409967,0.0024,110090.0,110080.0,1.03402181]
[1762124410189,0.0024,110090.0,110080.0,1.04002181]
[1762124410629,0.0024,110090.0,110080.0,1.4659553]
[1762124410849,0.0004,110100.0,110090.0,0.56785181]
[1762124411079,0.0004,110100.0,110090.0,1.47070879]
[1762124411297,0.0004,110130.0,110120.0,0.52162005]
[1762124411514,0.00088369,110130.0,110120.0,1.01035582]
[1762124411968,0.00088369,110130.0,110120.0,1.03420582]
[1762124412199,0.00088369,110130.0,110120.0,1.46013931]
[1762124412422,0.20882115,110170.0,110150.0,0.77786351]
[1762124412649,0.00014506,110170.0,110160.0,0.2208141]
[1762124413130,0.00323882,110170.0,110160.0,1.1571173]
[1762124414468,0.00823882,110170.0,110160.0,0.41544228]
[1762124414688,0.00823882,110170.0,110160.0,1.15702224]
[1762124415137,0.00823882,110170.0,110160.0,0.59690132]
[1762124415138,0.00323882,110170.0,110160.0,0.59690132]
[1762124415360,0.00323882,110170.0,110160.0,0.59790132]
[1762124415593,0.00323882,110170.0,110160.0,1.15802224]
[1762124415833,8e-05,110180.0,110170.0,0.5577199]
[1762124416052,8e-05,110180.0,110170.0,1.13336082]
[1762124416266,8e-05,110180.0,110170.0,1.16833082]
[1762124417562,8e-05,110180.0,110170.0,0.6082099]
[1762124417807,0.00508,110180.0,110170.0,0.57202762]
[1762124418031,0.00508,110180.0,110170.0,0.02694]
[1762124418032,0.20211114,110180.0,110170.0,0.02694]
[1762124418258,8e-05,110180.0,110170.0,0.23202762]
[1762124418476,8e-05,110180.0,110170.0,0.57202762]
[1762124418694,8e-05,110180.0,110170.0,1.16833082]
[1762124418695,0.00808,110180.0,110170.0,1.16833082]
[1762124419114,8e-05,110180.0,110170.0,1.16833082]
[1762124419322,0.00508,110180.0,110170.0,1.16833082]
[1762124420390,0.00508,110180.0,110170.0,0.39049]
[1762124420627,0.18160114,110180.0,110170.0,0.39049]
[1762124420845,0.18160114,110180.0,110170.0,0.39349]
[1762124421295,0.18160114,110180.0,110170.0,0.57502762]
[1762124421517,0.00030083,110180.0,110170.0,0.57202762]
[1762124421967,0.00330083,110180.0,110170.0,0.57202762]
[1762124422185,0.02404534,110190.0,110170.0,0.57202762]
[1762124422404,0.11888381,110210.0,110200.0,0.1814882]
[1762124422405,0.002634,110210.0,110200.0,0.1814882]
[1762124422614,0.02725747,110260.0,110230.0,0.19050007]
[1762124422827,0.02725747,110260.0,110240.0,0.19956404]
[1762124422828,0.0004836,110260.0,110240.0,0.19956404]
[1762124423059,0.0159936,110260.0,110250.0,0.02632]
[1762124423284,0.0159936,110260.0,110250.0,0.20772589]
[1762124424572,0.18140589,110250.0,110220.0,0.39225492]
[1762124424779,0.2894244,110230.0,110210.0,0.1922714]
[1762124424984,0.1325456,110230.0,110210.0,0.1922714]
[1762124425200,0.1325456,110230.0,110220.0,0.18145527]
[1762124425409,0.1079856,110230.0,110220.0,0.18145527]
[1762124425630,0.1079856,110230.0,110220.0,0.0156]
[1762124425840,0.1079856,110230.0,110220.0,0.19705527]
[1762124426045,0.0109,110230.0,110220.0,0.19705527]
[1762124426257,0.02726044,110240.0,110230.0,0.5214388]
[1762124426469,0.10249782,110260.0,110250.0,0.18140589]
[1762124426680,0.29120517,110260.0,110250.0,0.18140589]
[1762124426906,0.14938523,110260.0,110250.0,0.18140589]
[1762124427582,0.33077467,110260.0,110250.0,0.18140589]
[1762124427794,0.12882523,110260.0,110250.0,0.18140589]
[1762124428040,0.33477467,110260.0,110240.0,0.18142235]
[1762124428272,0.04851484,110260.0,110250.0,0.19220589]
[1762124428488,0.00624881,110260.0,110250.0,0.23280589]
[1762124428702,0.00579727,110260.0,110250.0,0.23280589]
[1762124429616,0.00179727,110260.0,110250.0,0.20780589]
[1762124430048,0.22675671,110260.0,110230.0,0.20131074]
[1762124430263,0.22675671,110260.0,110230.0,0.3508]
[1762124430264,0.02668,110240.0,110230.0,0.3508]
[1762124430477,0.20810235,110240.0,110230.0,0.3508]
[1762124430687,0.02668,110240.0,110230.0,0.5478388]
[1762124430895,0.01167,110240.0,110230.0,0.5478388]
[1762124431527,0.02668,110240.0,110230.0,0.5478388]
[1762124431754,0.01167,110240.0,110230.0,0.5498388]
[1762124432412,0.19049097,110260.0,110250.0,0.18140589]
[1762124432413,3.206e-05,110260.0,110250.0,0.18140589]
[1762124432647,3.206e-05,110260.0,110250.0,0.20780589]
[1762124434021,0.00403206,110260.0,110250.0,0.20780589]
[1762124434251,0.00403206,110260.0,110250.0,0.23280589]
[1762124434707,0.1854215,110260.0,110250.0,0.0264]
[1762124434923,0.18142235,110240.0,110230.0,0.0108]
[1762124435140,0.20810235,110240.0,110220.0,0.34]
[1762124435351,0.20810235,110240.0,110210.0,0.81372362]
[1762124435562,0.18143906,110230.0,110210.0,0.78646424]
[1762124435776,0.26351466,110230.0,110220.0,0.34]
[1762124435986,0.19646527,110220.0,110210.0,0.0108]
[1762124436202,0.01501,110220.0,110210.0,0.19227173]
[1762124436424,0.31533679,110230.0,110210.0,0.20787173]
[1762124436610,0.18145527,110220.0,110210.0,0.54787173]
[1762124436877,0.31633679,110230.0,110210.0,0.54787173]
[1762124437308,0.31548166,110230.0,110210.0,0.54787173]
[1762124437714,0.32248166,110230.0,110210.0,0.54787173]
[1762124437931,0.18145527,110220.0,110210.0,0.3664]
[1762124438153,0.21914717,110220.0,110210.0,0.3508]
[1762124438370,0.21914717,110220.0,110200.0,0.78261321]
[1762124438371,0.18147173,110210.0,110200.0,0.00693]
[1762124438629,0.20270173,110210.0,110200.0,0.34693]
[1762124439066,0.18150467,110190.0,110180.0,0.57092092]
[1762124439296,0.18150467,110190.0,110180.0,0.3508]
[1762124439548,0.18152114,110180.0,110170.0,0.59592092]
[1762124439779,0.18152114,110180.0,110170.0,0.0108]
[1762124440008,0.24500626,110190.0,110170.0,0.0264]
[1762124440254,0.18152114,110180.0,110170.0,0.02685154]
[1762124440474,0.18152114,110180.0,110170.0,0.20838916]
[1762124440709,0.18152114,110180.0,110170.0,0.21338916]
[1762124440926,0.18152114,110180.0,110170.0,0.03185154]
[1762124441153,0.18152114,110180.0,110170.0,0.21338916]
[1762124441641,0.22044626,110190.0,110170.0,0.23838916]
[1762124441864,0.22044626,110190.0,110180.0,0.0156]
[1762124442085,0.22066705,110190.0,110170.0,0.21778916]
[1762124442316,0.22066705,110190.0,110170.0,0.21878916]
[1762124442759,0.22066705,110190.0,110170.0,0.03625154]
[1762124442760,0.18152114,110180.0,110170.0,0.03625154]
[1762124442972,0.22109114,110180.0,110170.0,0.00045154]
[1762124446225,0.22109114,110180.0,110170.0,0.00145154]
[1762124446901,0.22109114,110180.0,110170.0,0.00045154]
[1762124447132,0.86636398,110180.0,110170.0,0.00045154]
[1762124447362,0.86836398,110180.0,110170.0,0.00045154]
[1762124447786,0.86636398,110180.0,110170.0,0.00045154]
[1762124448221,0.87436398,110180.0,110170.0,0.00045154]
[1762124448717,0.87434656,110180.0,110170.0,0.00045154]
[1762124449376,0.86634656,110180.0,110170.0,0.00045154]
[1762124449596,0.87434656,110180.0,110170.0,0.00045154]
[1762124450028,0.90162713,110180.0,110170.0,0.00045154]
[1762124450244,0.90162713,110180.0,110170.0,0.00039054]
[1762124450461,0.82440801,110180.0,110170.0,0.00039054]
[1762124450673,0.73927351,110180.0,110170.0,0.00039054]
[1762124450886,0.25637171,110180.0,110170.0,0.00039054]
[1762124452661,0.22381171,110180.0,110170.0,0.01616054]
[1762124453089,0.22881171,110180.0,110170.0,0.19769816]
[1762124453521,0.04229057,110180.0,110170.0,0.19769816]
[1762124453737,0.22381171,110180.0,110170.0,0.19769816]
[1762124453948,0.22581171,110180.0,110170.0,0.19769816]
[1762124455294,0.22581171,110180.0,110170.0,0.01616054]
[1762124457015,0.19853114,110180.0,110170.0,0.00039054]
[1762124457437,0.22177114,110180.0,110170.0,0.00039054]
[1762124457873,0.75439716,110180.0,110170.0,0.00039054]
[1762124458745,0.75239716,110180.0,110170.0,0.00039054]
[1762124458956,0.76039716,110180.0,110170.0,0.00039054]
[1762124459384,0.77984743,110180.0,110170.0,0.00039054]
[1762124459604,0.72212321,110180.0,110170.0,0.00039054]
[1762124459811,0.73012321,110180.0,110170.0,0.00039054]
[1762124460689,0.24722141,110180.0,110170.0,0.00039054]
[1762124460903,0.73012321,110180.0,110170.0,0.00039054]
[1762124461560,0.75209288,110180.0,110170.0,0.00039054]
[1762124461780,0.26919108,110180.0,110170.0,0.00039054]
[1762124461995,0.02301,110180.0,110170.0,0.19769816]
[1762124462872,0.01501,110180.0,110170.0,0.20849816]
[1762124463089,0.09396639,110190.0,110180.0,0.18152114]
[1762124463530,0.29193106,110190.0,110180.0,0.18152114]
[1762124463770,0.31517106,110190.0,110180.0,0.18152114]
[1762124463991,0.13366639,110190.0,110180.0,0.18152114]
[1762124464202,0.02835079,110190.0,110180.0,0.19729114]
[1762124464408,0.00022079,110190.0,110180.0,0.19729114]
[1762124464622,0.00022079,110190.0,110180.0,0.22075114]
[1762124465496,0.00022079,110190.0,110180.0,0.56075114]
[1762124465710,0.00022079,110190.0,110180.0,0.56175114]
[1762124470933,0.00022079,110190.0,110180.0,1.04465294]
[1762124471157,0.00022079,110190.0,110180.0,1.08083522]
[1762124477273,0.00022079,110190.0,110180.0,1.07983522]
[1762124477505,0.00022079,110190.0,110180.0,1.08683522]
[1762124478607,0.00022079,110190.0,110180.0,1.09615155]
[1762124479919,0.00022079,110190.0,110180.0,1.08683522]
[1762124483791,0.21660217,110260.0,110240.0,0.18142235]
[1762124484003,0.1170056,110270.0,110250.0,0.71298769]
[1762124484234,0.01146,110280.0,110260.0,0.21460838]
[1762124484460,0.1170056,110290.0,110280.0,0.18135654]
[1762124484666,0.2747157,110290.0,110280.0,0.01541]
[1762124484885,0.0113,110290.0,110280.0,0.19676654]
[1762124485106,0.0002,110310.0,110300.0,0.18132366]
[1762124485323,0.00068366,110310.0,110300.0,0.02428]
[1762124485570,0.18133518,110300.0,110290.0,0.00887]
[1762124485782,0.18133518,110300.0,110260.0,0.5063718]
[1762124485783,0.18135654,110280.0,110260.0,0.5063718]
[1762124485994,0.1813401,110290.0,110270.0,0.69661473]
[1762124486202,0.18135654,110280.0,110270.0,0.8552418]
[1762124486643,0.18135654,110280.0,110270.0,0.04775]
[1762124486883,0.18135654,110280.0,110270.0,0.5071818]
[1762124487099,0.18135654,110280.0,110270.0,0.5306518]
[1762124487309,0.18135654,110280.0,110250.0,0.0108]
[1762124487310,0.18138944,110260.0,110250.0,0.0108]
[1762124487523,0.18138944,110260.0,110250.0,0.4937018]
[1762124487738,0.18138944,110260.0,110250.0,0.36621]
[1762124487961,0.18138944,110260.0,110250.0,0.38968]
[1762124488146,0.18809299,110270.0,110250.0,1.05398769]
[1762124488389,0.18809299,110270.0,110260.0,0.19679944]
[1762124488593,0.18857635,110270.0,110260.0,0.01541]
[1762124489014,0.20366635,110270.0,110260.0,0.01541]
[1762124489239,0.00048336,110270.0,110260.0,0.19679944]
[1762124489517,0.00048336,110270.0,110260.0,1.09749246]
[1762124489726,0.00548336,110270.0,110260.0,1.07935352]
[1762124489936,0.00724834,110270.0,110260.0,1.07935352]
[1762124490363,0.00224834,110270.0,110260.0,1.07935352]
[1762124491619,0.00224834,110270.0,110260.0,1.08535352]
[1762124492048,0.00224834,110270.0,110260.0,1.07935352]
[1762124492459,0.00224834,110270.0,110260.0,1.08835352]
[1762124492901,0.00224834,110270.0,110260.0,1.07935352]
[1762124493370,0.00224834,110270.0,110260.0,1.08235352]
[1762124497484,1e-08,110270.0,110260.0,1.56525532]
[1762124497931,0.0002,110310.0,110300.0,0.66422546]
[1762124498151,0.0002,110310.0,110300.0,0.67963546]
[1762124498152,0.00034496,110310.0,110300.0,0.67963546]
[1762124498601,0.00034496,110310.0,110300.0,0.70310546]
[1762124499035,0.00034496,110310.0,110300.0,1.04310546]
[1762124499260,0.03721,110330.0,110300.0,1.04310546]
[1762124499261,8e-05,110330.0,110300.0,1.16136334]
[1762124499488,8e-05,110330.0,110320.0,1.03040259]
[1762124499979,8e-05,110330.0,110320.0,1.05387259]
[1762124500215,8e-05,110330.0,110320.0,1.09005487]
[1762124500441,0.18135435,110330.0,110320.0,0.8725818]
[1762124500657,0.18135435,110330.0,110320.0,1.57295667]
[1762124500658,8e-05,110330.0,110320.0,1.57295667]
[1762124501114,8e-05,110330.0,110320.0,1.05387259]
[1762124501961,8e-05,110330.0,110320.0,1.05487259]
[1762124502392,8e-05,110330.0,110320.0,1.05387259]
[1762124502792,0.00508,110330.0,110320.0,1.05387259]
[1762124503874,8e-05,110330.0,110320.0,1.05387259]
[1762124504299,0.00240253,110330.0,110320.0,1.05387259]
[1762124507924,0.00140253,110330.0,110320.0,1.05387259]
[1762124508126,0.00140253,110330.0,110320.0,1.05587259]
[1762124508751,0.00140253,110330.0,110320.0,1.57495667]
[1762124509368,0.00140253,110330.0,110320.0,1.09205487]
[1762124509585,0.00140253,110330.0,110320.0,1.05587259]
[1762124510937,0.19928688,110330.0,110320.0,0.36621]
[1762124511156,0.18129079,110320.0,110310.0,0.67500902]
[1762124511374,0.19790079,110320.0,110310.0,1.03100902]
[1762124511589,0.19790079,110320.0,110310.0,0.0268]
[1762124512016,0.19790079,110320.0,110310.0,0.20810722]
[1762124512897,0.19790079,110320.0,110310.0,0.0268]
[1762124513110,0.22262079,110320.0,110310.0,0.0108]
[1762124513999,0.22362079,110320.0,110310.0,0.0108]
[1762124514237,0.19890079,110320.0,110310.0,0.20810722]
[1762124515086,0.19790079,110320.0,110310.0,0.20810722]
[1762124515688,0.22262079,110320.0,110310.0,0.20810722]
[1762124516295,0.01661,110320.0,110310.0,0.20810722]
[1762124516520,0.20190079,110320.0,110310.0,0.20810722]
[1762124516697,0.22662079,110320.0,110310.0,0.20810722]
[1762124517055,0.22262079,110320.0,110310.0,0.20810722]
[1762124517255,0.04233,110320.0,110310.0,0.20810722]
[1762124517471,0.22362079,110320.0,110310.0,0.20810722]
[1762124517680,0.19346435,110330.0,110320.0,0.18129079]
[1762124517884,0.01219,110330.0,110320.0,0.19729079]
[1762124518301,0.0288,110330.0,110320.0,0.19729079]
[1762124518693,0.01219,110330.0,110320.0,0.19729079]
[1762124519821,0.01951253,110330.0,110320.0,0.19729079]
[1762124520294,0.01351253,110330.0,110320.0,0.19729079]
[1762124520513,0.01751253,110330.0,110320.0,0.19729079]
[1762124520970,0.00540253,110330.0,110320.0,0.22163079]
[1762124521191,0.00540253,110330.0,110320.0,1.12022159]
[1762124521424,0.00540253,110330.0,110320.0,1.15640387]
[1762124522316,0.00140253,110330.0,110320.0,1.15640387]
[1762124522746,0.00140253,110330.0,110320.0,1.15840387]
[1762124524564,0.00140253,110330.0,110320.0,1.22679616]
[1762124525989,0.00140253,110330.0,110320.0,1.12222159]
[1762124526430,0.00140253,110330.0,110320.0,0.78222159]
[1762124526886,0.00140253,110330.0,110320.0,0.78022159]
[1762124527111,0.00140253,110330.0,110320.0,1.12022159]
[1762124527334,0.00540253,110330.0,110320.0,1.12022159]
[1762124528488,0.00140253,110330.0,110320.0,1.12022159]
[1762124528722,0.00240253,110330.0,110320.0,1.12022159]
[1762124529463,0.00140253,110330.0,110320.0,1.12022159]
[1762124529672,0.00140253,110330.0,110320.0,1.15640387]
[1762124529896,0.00240253,110330.0,110320.0,1.15640387]
[1762124530353,0.00140253,110330.0,110320.0,1.15640387]
[1762124531948,0.00140253,110330.0,110320.0,1.18623782]
[1762124532187,0.00140253,110330.0,110320.0,1.18823782]
[1762124532892,0.00140253,110330.0,110320.0,1.15840387]
[1762124534979,0.21773333,110380.0,110360.0,0.18122508]
[1762124535199,0.23572354,110380.0,110360.0,0.75591588]
[1762124535423,0.21316354,110380.0,110370.0,0.20617866]
[1762124535892,0.01986128,110380.0,110370.0,0.22913866]
[1762124536128,0.00034477,110380.0,110370.0,0.20617866]
[1762124536344,0.01234477,110380.0,110370.0,0.20617866]
[1762124536780,0.00034477,110380.0,110370.0,0.22913866]
[1762124536995,0.00034477,110380.0,110370.0,0.78772946]
[1762124536996,0.01234477,110380.0,110370.0,0.78772946]
[1762124538339,0.19759701,110380.0,110370.0,0.5835608]
[1762124538564,0.19759701,110380.0,110360.0,0.34887]
[1762124538565,0.18120866,110370.0,110360.0,0.34887]
[1762124538787,0.20895866,110370.0,110360.0,0.34887]
[1762124539003,0.20895866,110370.0,110360.0,0.00887]
[1762124539223,0.23151866,110370.0,110360.0,0.00887]
[1762124539650,0.23151866,110370.0,110340.0,1.08891162]
[1762124539651,0.1812415,110350.0,110340.0,1.08891162]
[1762124539892,0.1812415,110350.0,110340.0,1.11187162]
[1762124540113,0.1812415,110350.0,110340.0,1.12797162]
[1762124540317,0.18122508,110360.0,110350.0,0.1812415]
[1762124540530,0.19926909,110370.0,110350.0,0.7877623]
[1762124540772,0.19926909,110370.0,110360.0,0.0161]
[1762124541407,0.19026909,110370.0,110360.0,0.0161]
[1762124541632,0.18122508,110360.0,110350.0,0.00887]
[1762124541850,0.21984508,110360.0,110350.0,0.00887]
[1762124542303,0.19728508,110360.0,110350.0,0.02497]
[1762124542649,0.19728508,110360.0,110340.0,0.54421757]
[1762124542868,0.21984508,110360.0,110350.0,0.1812415]
[1762124543303,0.20128508,110360.0,110350.0,0.1973415]
[1762124543524,0.20128508,110360.0,110350.0,0.0161]
[1762124543749,0.20128508,110360.0,110340.0,1.10280837]
[1762124543987,0.23164668,110350.0,110340.0,0.73984873]
[1762124544216,0.2089915,110350.0,110340.0,0.18125793]
[1762124544439,0.2089915,110350.0,110340.0,0.19727793]
[1762124544941,0.2089915,110350.0,110330.0,0.18127435]
[1762124544942,0.18125793,110340.0,110330.0,0.18127435]
[1762124545177,0.22010793,110340.0,110320.0,0.74875159]
[1762124545407,0.01506,110330.0,110320.0,0.76477159]
[1762124545658,0.19633435,110330.0,110320.0,0.76477159]
[1762124545879,0.25527364,110330.0,110310.0,0.75970772]
[1762124546118,0.25527364,110330.0,110310.0,0.77572772]
[1762124546119,0.01506,110320.0,110310.0,0.77572772]
[1762124546783,0.01506,110320.0,110310.0,0.21713692]
[1762124547448,0.22014079,110320.0,110300.0,1.09776035]
[1762124547679,0.02755,110310.0,110300.0,0.76480446]
[1762124547899,0.02755,110310.0,110300.0,0.74878446]
[1762124548131,0.20508079,110320.0,110300.0,0.78740446]
[1762124548607,0.20508079,110320.0,110300.0,0.76480446]
[1762124548608,0.20808079,110320.0,110300.0,0.76480446]
[1762124548840,0.02736,110310.0,110300.0,0.76480446]
[1762124549282,0.23245722,110310.0,110300.0,0.18127831]
[1762124549502,0.05115,110310.0,110300.0,0.18127831]
[1762124549973,0.23245722,110310.0,110300.0,0.18127831]
[1762124550193,0.23245722,110310.0,110290.0,0.75975093]
[1762124550455,0.01506,110300.0,110290.0,1.11591589]
[1762124550675,0.21739722,110310.0,110300.0,0.18132366]
[1762124550897,0.21739722,110310.0,110290.0,1.11591589]
[1762124550898,0.01506,110300.0,110290.0,1.11591589]
[1762124552030,0.21739802,110310.0,110290.0,1.11591589]
[1762124553145,0.18132366,110300.0,110290.0,1.11591589]
[1762124553368,0.18132366,110300.0,110290.0,0.36696496]
[1762124553369,0.19638366,110300.0,110290.0,0.36696496]
[1762124553583,0.22017366,110300.0,110290.0,0.00014496]
[1762124554684,0.30224926,110300.0,110290.0,0.00014496]